[Event "Titled Tuesday Blitz June 14 Late 2022"]
[White "Aravindh, Chithambaram VR."]
[Black "Andreikin, Dmitry"]
[WhiteFideId "5072786"]
[BlackFideId "4158814"]
[WhiteElo "2577"]
[BlackElo "2736"]
[Result "0-1"]
[Round "04"]
[TimeControl "180+1"]
[Date "2022.06.14"]
[WhiteClock "0:00:02"]
[BlackClock "0:00:28"]

1. Nc3 {[%clk 0:03:00]}  d5 {[%clk 0:02:57]} 2. e4 {[%clk 0:02:58]}  dxe4 {[%clk 0:02:56]} 3. Nxe4 {[%clk 0:02:59]}  Nf6 {[%clk 0:02:55]} 4. Nxf6+ {[%clk 0:02:53]}  exf6 {[%clk 0:02:56]} 5. d4 {[%clk 0:02:52]}  Bd6 {[%clk 0:02:56]} 6. Bd3 {[%clk 0:02:52]}  O-O {[%clk 0:02:56]} 7. Ne2 {[%clk 0:02:52]}  Re8 {[%clk 0:02:54]} 8. O-O {[%clk 0:02:52]}  Bg4 {[%clk 0:02:54]} 9. f3 {[%clk 0:02:49]}  Bh5 {[%clk 0:02:53]} 10. c3 {[%clk 0:02:45]}  c5 {[%clk 0:02:50]} 11. dxc5 {[%clk 0:02:37]}  Bxc5+ {[%clk 0:02:49]} 12. Kh1 {[%clk 0:02:37]}  Nc6 {[%clk 0:02:44]} 13. Nf4 {[%clk 0:02:36]}  Bg6 {[%clk 0:02:44]} 14. Nxg6 {[%clk 0:02:35]}  hxg6 {[%clk 0:02:45]} 15. Bf4 {[%clk 0:02:16]}  g5 {[%clk 0:02:42]} 16. Bg3 {[%clk 0:02:14]}  Ne5 {[%clk 0:02:43]} 17. Be4 {[%clk 0:02:12]}  Qb6 {[%clk 0:02:42]} 18. Qb3 {[%clk 0:02:09]}  Rad8 {[%clk 0:02:40]} 19. Rad1 {[%clk 0:02:07]}  Qxb3 {[%clk 0:02:20]} 20. axb3 {[%clk 0:02:08]}  b6 {[%clk 0:02:20]} 21. b4 {[%clk 0:01:38]}  Be3 {[%clk 0:02:20]} 22. Rfe1 {[%clk 0:01:33]}  Bd2 {[%clk 0:02:04]} 23. Re2 {[%clk 0:01:26]}  Bf4 {[%clk 0:01:26]} 24. Ra1 {[%clk 0:01:13]}  Nc4 {[%clk 0:01:22]} 25. Ree1 {[%clk 0:00:27]}  Nxb2 {[%clk 0:01:15]} 26. Bxf4 {[%clk 0:00:24]}  gxf4 {[%clk 0:01:15]} 27. h4 {[%clk 0:00:24]}  g6 {[%clk 0:01:11]} 28. Kh2 {[%clk 0:00:16]}  Nc4 {[%clk 0:00:57]} 29. Bc6 {[%clk 0:00:09]}  Re3 {[%clk 0:00:53]} 30. Bb5 {[%clk 0:00:06]}  Rxe1 {[%clk 0:00:51]} 31. Rxe1 {[%clk 0:00:06]}  Ne3 {[%clk 0:00:52]} 32. Ra1 {[%clk 0:00:04]}  Rd2 {[%clk 0:00:50]} 33. Rxa7 {[%clk 0:00:03]}  Rxg2+ {[%clk 0:00:49]} 34. Kh1 {[%clk 0:00:04]}  Rg3 {[%clk 0:00:40]} 35. Be8 {[%clk 0:00:04]}  Rxf3 {[%clk 0:00:39]} 36. Bxf7+ {[%clk 0:00:04]}  Kh8 {[%clk 0:00:39]} 37. Be6 {[%clk 0:00:02]}  Rg3 {[%clk 0:00:34]} 38. Rf7 {[%clk 0:00:01]}  f5 {[%clk 0:00:32]} 39. Kh2 {[%clk 0:00:01]}  Ng4+ {[%clk 0:00:29]} 40. Kh1 {[%clk 0:00:01]}  Nf2+ {[%clk 0:00:30]} 41. Kh2 {[%clk 0:00:01]}  Ng4+ {[%clk 0:00:30]} 42. Kh1 {[%clk 0:00:02]}  f3 {[%clk 0:00:31]} 43. h5 {[%clk 0:00:02]}  f2 {[%clk 0:00:28]} 44. Bc4 {[%clk 0:00:02]}  Rg1# {[%clk 0:00:28]} 0-1


[Site "https://www.chess.com"]

[Event "Titled Tuesday Blitz June 14 Late 2022"]
[White "Babazada, Khazar"]
[Black "Kollars, Dmitrij"]
[WhiteFideId "13413554"]
[BlackFideId "12909572"]
[WhiteElo "2406"]
[BlackElo "2584"]
[Result "1/2-1/2"]
[Round "04"]
[TimeControl "180+1"]
[Date "2022.06.14"]
[WhiteClock "0:01:55"]
[BlackClock "0:00:45"]

1. Nf3 {[%clk 0:03:00]}  Nf6 {[%clk 0:02:59]} 2. g3 {[%clk 0:03:01]}  g6 {[%clk 0:02:59]} 3. Bg2 {[%clk 0:03:01]}  Bg7 {[%clk 0:03:00]} 4. O-O {[%clk 0:03:00]}  O-O {[%clk 0:03:00]} 5. c4 {[%clk 0:03:00]}  Nc6 {[%clk 0:02:57]} 6. Nc3 {[%clk 0:02:59]}  d5 {[%clk 0:02:57]} 7. cxd5 {[%clk 0:02:59]}  Nxd5 {[%clk 0:02:58]} 8. e3 {[%clk 0:02:56]}  Nxc3 {[%clk 0:02:46]} 9. bxc3 {[%clk 0:02:55]}  Qd3 {[%clk 0:02:44]} 10. Ba3 {[%clk 0:02:47]}  Rd8 {[%clk 0:02:42]} 11. Qb3 {[%clk 0:02:35]}  Be6 {[%clk 0:02:31]} 12. Qxb7 {[%clk 0:02:30]}  Bd5 {[%clk 0:02:31]} 13. Qxc7 {[%clk 0:02:11]}  e5 {[%clk 0:02:16]} 14. Ng5 {[%clk 0:01:59]}  Rac8 {[%clk 0:01:59]} 15. Qb7 {[%clk 0:01:57]}  Rb8 {[%clk 0:01:57]} 16. Qc7 {[%clk 0:01:57]}  Rbc8 {[%clk 0:01:25]} 17. Qb7 {[%clk 0:01:56]}  Rb8 {[%clk 0:00:46]} 18. Qc7 {[%clk 0:01:55]}  Rbc8 {[%clk 0:00:45]} 1/2-1/2


[Site "https://www.chess.com"]

[Event "Titled Tuesday Blitz June 14 Late 2022"]
[White "Bernadskiy, Vitaliy"]
[Black "Golubev, Mikhail"]
[WhiteFideId "14100371"]
[BlackFideId "14100983"]
[WhiteElo "2473"]
[BlackElo "2374"]
[Result "1-0"]
[Round "04"]
[TimeControl "180+1"]
[Date "2022.06.14"]
[WhiteClock "0:01:50"]
[BlackClock "0:00:01"]

1. b3 {[%clk 0:03:00]}  d6 {[%clk 0:02:59]} 2. Bb2 {[%clk 0:03:01]}  Nd7 {[%clk 0:03:00]} 3. Nf3 {[%clk 0:03:01]}  Ngf6 {[%clk 0:02:58]} 4. d4 {[%clk 0:03:00]}  g6 {[%clk 0:02:58]} 5. g3 {[%clk 0:02:56]}  Bg7 {[%clk 0:02:58]} 6. Bg2 {[%clk 0:02:56]}  O-O {[%clk 0:02:57]} 7. O-O {[%clk 0:02:56]}  a5 {[%clk 0:02:53]} 8. a4 {[%clk 0:02:55]}  c6 {[%clk 0:02:47]} 9. Na3 {[%clk 0:02:54]}  d5 {[%clk 0:02:31]} 10. c4 {[%clk 0:02:54]}  Ne4 {[%clk 0:02:16]} 11. cxd5 {[%clk 0:02:53]}  cxd5 {[%clk 0:02:17]} 12. Nb5 {[%clk 0:02:53]}  Ndf6 {[%clk 0:02:09]} 13. Ne5 {[%clk 0:02:52]}  Nd6 {[%clk 0:01:59]} 14. Nc3 {[%clk 0:02:47]}  Bf5 {[%clk 0:01:53]} 15. Nxd5 {[%clk 0:02:41]}  Nxd5 {[%clk 0:01:51]} 16. Bxd5 {[%clk 0:02:42]}  Ne4 {[%clk 0:01:41]} 17. Bxb7 {[%clk 0:02:31]}  Bxe5 {[%clk 0:01:27]} 18. dxe5 {[%clk 0:02:23]}  Rb8 {[%clk 0:01:23]} 19. Bd5 {[%clk 0:02:17]}  e6 {[%clk 0:00:25]} 20. Bxe4 {[%clk 0:02:15]}  Bxe4 {[%clk 0:00:24]} 21. Qxd8 {[%clk 0:02:15]}  Rfxd8 {[%clk 0:00:24]} 22. Bc3 {[%clk 0:02:15]}  Rxb3 {[%clk 0:00:17]} 23. Bxa5 {[%clk 0:02:15]}  Ra8 {[%clk 0:00:17]} 24. Bc7 {[%clk 0:02:09]}  Bc6 {[%clk 0:00:14]} 25. a5 {[%clk 0:02:08]}  Bb5 {[%clk 0:00:14]} 26. Ra2 {[%clk 0:01:58]}  h6 {[%clk 0:00:07]} 27. Rc1 {[%clk 0:01:57]}  g5 {[%clk 0:00:06]} 28. f3 {[%clk 0:01:57]}  Kh7 {[%clk 0:00:05]} 29. Kf2 {[%clk 0:01:57]}  Kg6 {[%clk 0:00:05]} 30. g4 {[%clk 0:01:52]}  Rc8 {[%clk 0:00:01]} 31. a6 {[%clk 0:01:50]} 1-0


[Site "https://www.chess.com"]

[Event "Titled Tuesday Blitz June 14 Late 2022"]
[White "Bringas Gomez, Artai"]
[Black "Ivanisevic, Ivan"]
[WhiteFideId "24534064"]
[BlackFideId "912417"]
[WhiteElo "1988"]
[BlackElo "2535"]
[Result "0-1"]
[Round "04"]
[TimeControl "180+1"]
[Date "2022.06.14"]
[WhiteClock "0:01:43"]
[BlackClock "0:00:42"]

1. d4 {[%clk 0:03:00]}  d5 {[%clk 0:02:59]} 2. Nf3 {[%clk 0:03:01]}  Nf6 {[%clk 0:02:59]} 3. c4 {[%clk 0:03:01]}  e6 {[%clk 0:02:59]} 4. g3 {[%clk 0:03:01]}  h6 {[%clk 0:02:59]} 5. Bg2 {[%clk 0:03:01]}  Bd6 {[%clk 0:02:59]} 6. O-O {[%clk 0:03:01]}  O-O {[%clk 0:02:59]} 7. Nbd2 {[%clk 0:02:59]}  Nc6 {[%clk 0:02:51]} 8. Re1 {[%clk 0:02:53]}  a5 {[%clk 0:02:11]} 9. e4 {[%clk 0:02:49]}  Be7 {[%clk 0:02:09]} 10. e5 {[%clk 0:02:48]}  Nd7 {[%clk 0:02:08]} 11. cxd5 {[%clk 0:02:47]}  exd5 {[%clk 0:02:09]} 12. Nf1 {[%clk 0:02:47]}  Nb6 {[%clk 0:02:08]} 13. Ne3 {[%clk 0:02:47]}  f6 {[%clk 0:02:06]} 14. Nh4 {[%clk 0:02:34]}  fxe5 {[%clk 0:02:01]} 15. Ng6 {[%clk 0:02:23]}  exd4 {[%clk 0:01:42]} 16. Nxf8 {[%clk 0:02:23]}  dxe3 {[%clk 0:01:35]} 17. Ng6 {[%clk 0:02:23]}  exf2+ {[%clk 0:01:35]} 18. Kxf2 {[%clk 0:02:24]}  Bc5+ {[%clk 0:01:35]} 19. Kf1 {[%clk 0:02:16]}  Qf6+ {[%clk 0:01:33]} 20. Nf4 {[%clk 0:02:16]}  Bf5 {[%clk 0:01:22]} 21. Bxd5+ {[%clk 0:02:14]}  Kh8 {[%clk 0:01:22]} 22. Bxc6 {[%clk 0:02:13]}  Qxc6 {[%clk 0:01:18]} 23. Be3 {[%clk 0:02:09]}  Qh1+ {[%clk 0:01:10]} 24. Kf2 {[%clk 0:02:10]}  Qxh2+ {[%clk 0:01:09]} 25. Ng2 {[%clk 0:02:10]}  Be4 {[%clk 0:00:59]} 26. Bxc5 {[%clk 0:01:58]}  Qxg2+ {[%clk 0:00:58]} 27. Ke3 {[%clk 0:01:58]}  Re8 {[%clk 0:00:48]} 28. Kf4 {[%clk 0:01:43]}  Nd5+ {[%clk 0:00:42]} 29. Qxd5 {[%clk 0:01:43]}  Qf3# {[%clk 0:00:42]} 0-1


[Site "https://www.chess.com"]

[Event "Titled Tuesday Blitz June 14 Late 2022"]
[White "Dardha, Daniel"]
[Black "Yoo, Christopher Woojin"]
[WhiteFideId "240990"]
[BlackFideId "30909694"]
[WhiteElo "2482"]
[BlackElo "2105"]
[Result "1-0"]
[Round "04"]
[TimeControl "180+1"]
[Date "2022.06.14"]
[WhiteClock "0:00:08"]
[BlackClock "0:00:01"]

1. d4 {[%clk 0:03:00]}  Nf6 {[%clk 0:02:59]} 2. c4 {[%clk 0:02:59]}  e6 {[%clk 0:02:59]} 3. Nc3 {[%clk 0:02:58]}  Bb4 {[%clk 0:02:58]} 4. Qc2 {[%clk 0:02:58]}  O-O {[%clk 0:02:58]} 5. Nf3 {[%clk 0:02:56]}  d5 {[%clk 0:02:49]} 6. a3 {[%clk 0:02:54]}  Be7 {[%clk 0:02:44]} 7. cxd5 {[%clk 0:02:48]}  exd5 {[%clk 0:02:43]} 8. Bg5 {[%clk 0:02:45]}  c6 {[%clk 0:02:42]} 9. e3 {[%clk 0:02:41]}  Ne4 {[%clk 0:02:41]} 10. Bxe7 {[%clk 0:02:34]}  Qxe7 {[%clk 0:02:41]} 11. Bd3 {[%clk 0:02:35]}  Bf5 {[%clk 0:02:41]} 12. Nd2 {[%clk 0:02:31]}  Re8 {[%clk 0:02:39]} 13. Bxe4 {[%clk 0:02:26]}  dxe4 {[%clk 0:02:27]} 14. Ne2 {[%clk 0:02:26]}  Nd7 {[%clk 0:02:26]} 15. Ng3 {[%clk 0:02:23]}  Bg6 {[%clk 0:02:26]} 16. Rc1 {[%clk 0:02:19]}  h5 {[%clk 0:02:25]} 17. Ne2 {[%clk 0:02:16]}  h4 {[%clk 0:02:22]} 18. h3 {[%clk 0:02:12]}  Rac8 {[%clk 0:02:21]} 19. O-O {[%clk 0:02:07]}  Bf5 {[%clk 0:02:19]} 20. Qa4 {[%clk 0:02:04]}  a6 {[%clk 0:02:16]} 21. Qa5 {[%clk 0:02:03]}  c5 {[%clk 0:02:13]} 22. dxc5 {[%clk 0:01:59]}  Rxc5 {[%clk 0:02:09]} 23. Rxc5 {[%clk 0:01:56]}  Qxc5 {[%clk 0:02:10]} 24. Qxc5 {[%clk 0:01:52]}  Nxc5 {[%clk 0:02:11]} 25. Rc1 {[%clk 0:01:52]}  Nd3 {[%clk 0:02:12]} 26. Rc7 {[%clk 0:01:50]}  Rc8 {[%clk 0:02:03]} 27. Rxc8+ {[%clk 0:01:46]}  Bxc8 {[%clk 0:02:04]} 28. Nxe4 {[%clk 0:01:44]}  Nxb2 {[%clk 0:02:02]} 29. Nd6 {[%clk 0:01:44]}  Bd7 {[%clk 0:01:40]} 30. Nxb7 {[%clk 0:01:44]}  Na4 {[%clk 0:01:37]} 31. Nd4 {[%clk 0:01:39]}  Kf8 {[%clk 0:01:37]} 32. Kh2 {[%clk 0:01:33]}  Ke7 {[%clk 0:01:33]} 33. g3 {[%clk 0:01:33]}  hxg3+ {[%clk 0:01:31]} 34. Kxg3 {[%clk 0:01:34]}  Bc8 {[%clk 0:01:30]} 35. Na5 {[%clk 0:01:32]}  Kd6 {[%clk 0:01:30]} 36. Nc4+ {[%clk 0:01:28]}  Kd5 {[%clk 0:01:29]} 37. Nd2 {[%clk 0:01:27]}  Nc3 {[%clk 0:01:28]} 38. f3 {[%clk 0:01:21]}  Bd7 {[%clk 0:01:19]} 39. Nc2 {[%clk 0:01:11]}  a5 {[%clk 0:01:17]} 40. e4+ {[%clk 0:01:04]}  Kc5 {[%clk 0:01:12]} 41. h4 {[%clk 0:01:04]}  a4 {[%clk 0:01:07]} 42. Kf4 {[%clk 0:00:58]}  Be6 {[%clk 0:01:03]} 43. Kg5 {[%clk 0:00:54]}  Nb5 {[%clk 0:00:59]} 44. h5 {[%clk 0:00:49]}  Bb3 {[%clk 0:00:58]} 45. Ne3 {[%clk 0:00:48]}  Nxa3 {[%clk 0:00:43]} 46. Nf5 {[%clk 0:00:48]}  Nb5 {[%clk 0:00:38]} 47. Nxg7 {[%clk 0:00:44]}  f6+ {[%clk 0:00:38]} 48. Kxf6 {[%clk 0:00:42]}  Bg8 {[%clk 0:00:39]} 49. Nb1 {[%clk 0:00:38]}  Kb4 {[%clk 0:00:39]} 50. h6 {[%clk 0:00:35]}  Nc3 {[%clk 0:00:37]} 51. Nxc3 {[%clk 0:00:32]}  Kxc3 {[%clk 0:00:38]} 52. e5 {[%clk 0:00:31]}  a3 {[%clk 0:00:30]} 53. e6 {[%clk 0:00:32]}  a2 {[%clk 0:00:18]} 54. e7 {[%clk 0:00:28]}  a1=Q {[%clk 0:00:18]} 55. e8=Q {[%clk 0:00:27]}  Kd3+ {[%clk 0:00:14]} 56. Qe5 {[%clk 0:00:26]}  Qa6+ {[%clk 0:00:14]} 57. Ne6 {[%clk 0:00:23]}  Qc8 {[%clk 0:00:09]} 58. Nc5+ {[%clk 0:00:19]}  Kc4 {[%clk 0:00:08]} 59. Ne6 {[%clk 0:00:18]}  Kd3 {[%clk 0:00:06]} 60. Ng5 {[%clk 0:00:13]}  Qf8+ {[%clk 0:00:04]} 61. Kg6 {[%clk 0:00:12]}  Kc4 {[%clk 0:00:02]} 62. Qf6 {[%clk 0:00:08]}  Qe8+ {[%clk 0:00:01]} 63. Kg7 {[%clk 0:00:09]}  Bd5 {[%clk 0:00:01]} 64. h7 {[%clk 0:00:08]}  Qd7+ {[%clk 0:00:02]} 65. Nf7 {[%clk 0:00:08]}  Bxf7 {[%clk 0:00:01]} 66. Qxf7+ {[%clk 0:00:08]} 1-0


[Site "https://www.chess.com"]

[Event "Titled Tuesday Blitz June 14 Late 2022"]
[White "Fedoseev, Vladimir"]
[Black "Pinheiro, Iung Alicio de O."]
[WhiteFideId "24130737"]
[BlackFideId "2104350"]
[WhiteElo "2726"]
[BlackElo "2283"]
[Result "1-0"]
[Round "04"]
[TimeControl "180+1"]
[Date "2022.06.14"]
[WhiteClock "0:00:57"]
[BlackClock "0:00:13"]

1. e4 {[%clk 0:02:54]}  c5 {[%clk 0:02:59]} 2. Nf3 {[%clk 0:02:54]}  Nc6 {[%clk 0:02:59]} 3. Bb5 {[%clk 0:02:52]}  e6 {[%clk 0:02:58]} 4. O-O {[%clk 0:02:51]}  Nge7 {[%clk 0:02:58]} 5. Re1 {[%clk 0:02:51]}  Nd4 {[%clk 0:02:56]} 6. Bf1 {[%clk 0:02:50]}  Nec6 {[%clk 0:02:52]} 7. Nxd4 {[%clk 0:02:48]}  cxd4 {[%clk 0:02:51]} 8. d3 {[%clk 0:02:48]}  Bc5 {[%clk 0:02:38]} 9. Nd2 {[%clk 0:02:46]}  O-O {[%clk 0:02:37]} 10. f4 {[%clk 0:02:35]}  f5 {[%clk 0:02:35]} 11. Nf3 {[%clk 0:02:29]}  b6 {[%clk 0:02:13]} 12. exf5 {[%clk 0:02:21]}  Rxf5 {[%clk 0:02:12]} 13. g3 {[%clk 0:02:18]}  Bb7 {[%clk 0:02:10]} 14. Bg2 {[%clk 0:02:19]}  Rb8 {[%clk 0:02:10]} 15. a3 {[%clk 0:02:17]}  a5 {[%clk 0:02:08]} 16. Bd2 {[%clk 0:02:15]}  Rf8 {[%clk 0:01:57]} 17. Qe2 {[%clk 0:02:03]}  b5 {[%clk 0:01:48]} 18. Ng5 {[%clk 0:02:02]}  h6 {[%clk 0:01:37]} 19. Nxe6 {[%clk 0:02:00]}  dxe6 {[%clk 0:01:34]} 20. Bxc6 {[%clk 0:01:55]}  Rf6 {[%clk 0:01:07]} 21. Bxb7 {[%clk 0:01:48]}  Rxb7 {[%clk 0:01:08]} 22. Qe5 {[%clk 0:01:48]}  Bf8 {[%clk 0:00:59]} 23. Re4 {[%clk 0:01:43]}  Qc8 {[%clk 0:00:49]} 24. Rc1 {[%clk 0:01:40]}  Bc5 {[%clk 0:00:39]} 25. Bxa5 {[%clk 0:01:33]}  Rd7 {[%clk 0:00:39]} 26. Ree1 {[%clk 0:01:28]}  Bd6 {[%clk 0:00:33]} 27. Qe4 {[%clk 0:01:27]}  Re7 {[%clk 0:00:29]} 28. Bb4 {[%clk 0:01:26]}  Bxb4 {[%clk 0:00:22]} 29. axb4 {[%clk 0:01:27]}  Qd7 {[%clk 0:00:22]} 30. Ra1 {[%clk 0:01:25]}  Re8 {[%clk 0:00:21]} 31. Ra8 {[%clk 0:01:23]}  Rff8 {[%clk 0:00:19]} 32. Rxe8 {[%clk 0:01:23]}  Rxe8 {[%clk 0:00:20]} 33. Qe5 {[%clk 0:01:19]}  Qc6 {[%clk 0:00:19]} 34. Re2 {[%clk 0:01:18]}  Ra8 {[%clk 0:00:18]} 35. Qxe6+ {[%clk 0:01:08]}  Qxe6 {[%clk 0:00:18]} 36. Rxe6 {[%clk 0:01:09]}  Ra2 {[%clk 0:00:18]} 37. Rb6 {[%clk 0:01:08]}  Rxb2 {[%clk 0:00:18]} 38. Rxb5 {[%clk 0:01:09]}  Rxc2 {[%clk 0:00:19]} 39. Rd5 {[%clk 0:01:09]}  Rb2 {[%clk 0:00:18]} 40. Rxd4 {[%clk 0:01:09]}  Kf7 {[%clk 0:00:19]} 41. g4 {[%clk 0:01:07]}  Kf6 {[%clk 0:00:19]} 42. h4 {[%clk 0:01:06]}  g6 {[%clk 0:00:18]} 43. Rd6+ {[%clk 0:01:05]}  Kf7 {[%clk 0:00:18]} 44. Rb6 {[%clk 0:01:02]}  Rd2 {[%clk 0:00:17]} 45. g5 {[%clk 0:01:02]}  h5 {[%clk 0:00:17]} 46. Rf6+ {[%clk 0:01:00]}  Kg7 {[%clk 0:00:17]} 47. Rd6 {[%clk 0:01:00]}  Rb2 {[%clk 0:00:16]} 48. Rd7+ {[%clk 0:01:00]}  Kf8 {[%clk 0:00:16]} 49. Rb7 {[%clk 0:00:59]}  Rd2 {[%clk 0:00:16]} 50. b5 {[%clk 0:00:58]}  Rxd3 {[%clk 0:00:16]} 51. Kg2 {[%clk 0:00:59]}  Rb3 {[%clk 0:00:16]} 52. b6 {[%clk 0:00:57]}  Kg8 {[%clk 0:00:17]} 53. Kf2 {[%clk 0:00:57]}  Kh8 {[%clk 0:00:17]} 54. Ke2 {[%clk 0:00:57]}  Kg8 {[%clk 0:00:17]} 55. Kd2 {[%clk 0:00:57]}  Kf8 {[%clk 0:00:13]} 56. Kc2 {[%clk 0:00:57]}  Rb4 {[%clk 0:00:14]} 57. Kc3 {[%clk 0:00:57]}  Rxf4 {[%clk 0:00:13]} 58. Rc7 {[%clk 0:00:57]} 1-0


[Site "https://www.chess.com"]